[Event "Titled Tuesday Blitz June 15 2021"]
[White "Nakamura, Hikaru"]
[Black "Araujo Sanchez, Josue"]
[WhiteFideId "2016192"]
[BlackFideId "6416896"]
[WhiteElo "2900"]
[BlackElo "2140"]
[Result "1-0"]
[Round "06"]
[TimeControl "180+1"]
[Date "2021.06.15"]
[WhiteClock "0:00:39"]
[BlackClock "0:00:03"]

1. e4 {[%clk 0:03:00]}  c5 {[%clk 0:02:58]} 2. Nf3 {[%clk 0:02:56]}  d6 {[%clk 0:02:58]} 3. d4 {[%clk 0:02:56]}  cxd4 {[%clk 0:02:59]} 4. Qxd4 {[%clk 0:02:56]}  a6 {[%clk 0:02:58]} 5. c4 {[%clk 0:02:56]}  Nc6 {[%clk 0:02:59]} 6. Qd2 {[%clk 0:02:56]}  Nf6 {[%clk 0:03:00]} 7. Nc3 {[%clk 0:02:56]}  g6 {[%clk 0:03:00]} 8. h3 {[%clk 0:02:56]}  Bg7 {[%clk 0:03:00]} 9. Bd3 {[%clk 0:02:54]}  Be6 {[%clk 0:03:01]} 10. O-O {[%clk 0:02:54]}  O-O {[%clk 0:03:01]} 11. b3 {[%clk 0:02:54]}  Nd7 {[%clk 0:03:02]} 12. Bb2 {[%clk 0:02:53]}  Qa5 {[%clk 0:03:03]} 13. a3 {[%clk 0:02:50]}  Rfc8 {[%clk 0:02:58]} 14. Rfc1 {[%clk 0:02:43]}  Qh5 {[%clk 0:02:48]} 15. Be2 {[%clk 0:02:32]}  Qa5 {[%clk 0:02:41]} 16. b4 {[%clk 0:02:30]}  Qd8 {[%clk 0:02:39]} 17. Nd5 {[%clk 0:02:30]}  Bxb2 {[%clk 0:02:22]} 18. Qxb2 {[%clk 0:02:31]}  Nde5 {[%clk 0:01:20]} 19. Nd2 {[%clk 0:02:27]}  Nd7 {[%clk 0:01:08]} 20. Bf1 {[%clk 0:02:15]}  a5 {[%clk 0:00:57]} 21. b5 {[%clk 0:02:12]}  Ncb8 {[%clk 0:00:40]} 22. f4 {[%clk 0:02:10]}  Bxd5 {[%clk 0:00:37]} 23. exd5 {[%clk 0:02:07]}  Qb6+ {[%clk 0:00:32]} 24. Kh1 {[%clk 0:02:04]}  Qf2 {[%clk 0:00:33]} 25. Re1 {[%clk 0:02:02]}  Re8 {[%clk 0:00:27]} 26. Re4 {[%clk 0:01:44]}  Nf6 {[%clk 0:00:22]} 27. Qxf6 {[%clk 0:01:39]}  exf6 {[%clk 0:00:21]} 28. Rxe8+ {[%clk 0:01:40]}  Kg7 {[%clk 0:00:21]} 29. Nf3 {[%clk 0:01:40]}  Qa7 {[%clk 0:00:17]} 30. Re7 {[%clk 0:01:35]}  Qc5 {[%clk 0:00:14]} 31. a4 {[%clk 0:01:22]}  Qc8 {[%clk 0:00:12]} 32. c5 {[%clk 0:01:18]}  Qxc5 {[%clk 0:00:08]} 33. Rxb7 {[%clk 0:01:18]}  Qc8 {[%clk 0:00:07]} 34. Re7 {[%clk 0:01:16]}  Nd7 {[%clk 0:00:08]} 35. Nd4 {[%clk 0:01:16]}  Kf8 {[%clk 0:00:06]} 36. Nc6 {[%clk 0:01:16]}  Nc5 {[%clk 0:00:06]} 37. b6 {[%clk 0:01:13]}  Qf5 {[%clk 0:00:03]} 38. b7 {[%clk 0:01:08]}  Nxb7 {[%clk 0:00:03]} 39. Rxb7 {[%clk 0:01:08]}  Qxd5 {[%clk 0:00:03]} 40. Bb5 {[%clk 0:01:09]}  Rc8 {[%clk 0:00:02]} 41. Rb6 {[%clk 0:01:01]}  Rc7 {[%clk 0:00:02]} 42. Ra6 {[%clk 0:00:58]}  Kg7 {[%clk 0:00:01]} 43. Rf1 {[%clk 0:00:56]}  Qc5 {[%clk 0:00:01]} 44. Nxa5 {[%clk 0:00:54]}  d5 {[%clk 0:00:01]} 45. Rc6 {[%clk 0:00:51]}  Rxc6 {[%clk 0:00:02]} 46. Nxc6 {[%clk 0:00:52]}  Qb6 {[%clk 0:00:02]} 47. Rd1 {[%clk 0:00:52]}  Qc5 {[%clk 0:00:02]} 48. Nd4 {[%clk 0:00:50]}  h5 {[%clk 0:00:03]} 49. h4 {[%clk 0:00:46]}  Kh6 {[%clk 0:00:02]} 50. a5 {[%clk 0:00:43]}  Kg7 {[%clk 0:00:03]} 51. a6 {[%clk 0:00:43]}  f5 {[%clk 0:00:03]} 52. Be2 {[%clk 0:00:43]}  Kf6 {[%clk 0:00:03]} 53. g3 {[%clk 0:00:41]}  Ke7 {[%clk 0:00:03]} 54. a7 {[%clk 0:00:39]} 1-0


[Site "https://www.chess.com"]

[Event "Titled Tuesday Blitz June 15 2021"]
[White "Nguyen, Ngoc Truong Son"]
[Black "Assaubayeva, Bibisara"]
[WhiteFideId "12401110"]
[BlackFideId "13708694"]
[WhiteElo "2596"]
[BlackElo "2232"]
[Result "0-1"]
[Round "06"]
[TimeControl "180+1"]
[Date "2021.06.15"]
[WhiteClock "0:00:02"]
[BlackClock "0:00:16"]

1. e4 {[%clk 0:03:00]}  c5 {[%clk 0:02:59]} 2. Nf3 {[%clk 0:03:00]}  d6 {[%clk 0:03:00]} 3. d4 {[%clk 0:03:00]}  cxd4 {[%clk 0:03:01]} 4. Nxd4 {[%clk 0:03:01]}  Nf6 {[%clk 0:03:01]} 5. Nc3 {[%clk 0:03:02]}  a6 {[%clk 0:03:01]} 6. Bg5 {[%clk 0:03:02]}  e6 {[%clk 0:03:00]} 7. f4 {[%clk 0:03:01]}  Be7 {[%clk 0:03:00]} 8. Qf3 {[%clk 0:02:59]}  Qc7 {[%clk 0:03:00]} 9. O-O-O {[%clk 0:02:53]}  Nbd7 {[%clk 0:03:01]} 10. g4 {[%clk 0:02:46]}  b5 {[%clk 0:03:00]} 11. a3 {[%clk 0:02:25]}  Rb8 {[%clk 0:02:48]} 12. Bxf6 {[%clk 0:02:18]}  Nxf6 {[%clk 0:02:48]} 13. g5 {[%clk 0:02:06]}  Nd7 {[%clk 0:02:45]} 14. h4 {[%clk 0:01:56]}  b4 {[%clk 0:02:42]} 15. axb4 {[%clk 0:01:56]}  Rxb4 {[%clk 0:02:42]} 16. h5 {[%clk 0:01:51]}  Nc5 {[%clk 0:02:27]} 17. g6 {[%clk 0:01:22]}  Bf6 {[%clk 0:02:15]} 18. e5 {[%clk 0:01:13]}  dxe5 {[%clk 0:01:41]} 19. fxe5 {[%clk 0:01:14]}  Bg5+ {[%clk 0:01:33]} 20. Kb1 {[%clk 0:01:12]}  Bb7 {[%clk 0:01:33]} 21. Qg3 {[%clk 0:00:34]}  h6 {[%clk 0:00:48]} 22. Bb5+ {[%clk 0:00:30]}  axb5 {[%clk 0:00:39]} 23. Ndxb5 {[%clk 0:00:31]}  Qb6 {[%clk 0:00:37]} 24. gxf7+ {[%clk 0:00:27]}  Kf8 {[%clk 0:00:34]} 25. Rhf1 {[%clk 0:00:25]}  Na4 {[%clk 0:00:25]} 26. Nxa4 {[%clk 0:00:19]}  Qxb5 {[%clk 0:00:25]} 27. b3 {[%clk 0:00:13]}  Rxa4 {[%clk 0:00:24]} 28. Qc3 {[%clk 0:00:06]}  Ra8 {[%clk 0:00:21]} 29. Rf2 {[%clk 0:00:04]}  Qa5 {[%clk 0:00:17]} 30. Qb2 {[%clk 0:00:01]}  Bd5 {[%clk 0:00:16]} 31. c4 {[%clk 0:00:02]}  Be4+ {[%clk 0:00:16]} 0-1


[Site "https://www.chess.com"]

[Event "Titled Tuesday Blitz June 15 2021"]
[White "Pastar, Slaven"]
[Black "Molina, Roberto Junio Brito"]
[WhiteFideId "14402718"]
[BlackFideId "2109450"]
[WhiteElo "2227"]
[BlackElo "2402"]
[Result "0-1"]
[Round "06"]
[TimeControl "180+1"]
[Date "2021.06.15"]
[WhiteClock "0:00:03"]
[BlackClock "0:00:16"]

1. b3 {[%clk 0:03:00]}  d5 {[%clk 0:02:55]} 2. Bb2 {[%clk 0:03:01]}  Bg4 {[%clk 0:02:55]} 3. h3 {[%clk 0:02:59]}  Bh5 {[%clk 0:02:55]} 4. g3 {[%clk 0:03:00]}  e6 {[%clk 0:02:52]} 5. Bg2 {[%clk 0:03:00]}  Nd7 {[%clk 0:02:49]} 6. Nf3 {[%clk 0:03:00]}  Ngf6 {[%clk 0:02:48]} 7. O-O {[%clk 0:02:54]}  Bd6 {[%clk 0:02:48]} 8. c4 {[%clk 0:02:54]}  O-O {[%clk 0:02:48]} 9. d3 {[%clk 0:02:49]}  Qe7 {[%clk 0:02:46]} 10. Nbd2 {[%clk 0:02:48]}  c6 {[%clk 0:02:45]} 11. Qc2 {[%clk 0:02:44]}  e5 {[%clk 0:02:42]} 12. e4 {[%clk 0:02:43]}  dxe4 {[%clk 0:02:35]} 13. Nxe4 {[%clk 0:02:38]}  Nxe4 {[%clk 0:02:35]} 14. dxe4 {[%clk 0:02:39]}  a5 {[%clk 0:02:31]} 15. Ne1 {[%clk 0:02:06]}  Rfd8 {[%clk 0:02:27]} 16. Nd3 {[%clk 0:02:06]}  Nc5 {[%clk 0:02:24]} 17. Nxc5 {[%clk 0:02:02]}  Bxc5 {[%clk 0:02:24]} 18. g4 {[%clk 0:01:58]}  Bg6 {[%clk 0:02:23]} 19. Rad1 {[%clk 0:01:58]}  f6 {[%clk 0:02:23]} 20. Rxd8+ {[%clk 0:01:52]}  Rxd8 {[%clk 0:02:22]} 21. Rd1 {[%clk 0:01:53]}  Rd7 {[%clk 0:02:18]} 22. Bc3 {[%clk 0:01:38]}  b6 {[%clk 0:02:16]} 23. Rxd7 {[%clk 0:01:35]}  Qxd7 {[%clk 0:02:16]} 24. Qd2 {[%clk 0:01:35]}  Qxd2 {[%clk 0:02:14]} 25. Bxd2 {[%clk 0:01:35]}  Kf7 {[%clk 0:02:09]} 26. Kf1 {[%clk 0:01:36]}  Ke6 {[%clk 0:02:10]} 27. Ke2 {[%clk 0:01:36]}  Bd4 {[%clk 0:02:09]} 28. a3 {[%clk 0:01:24]}  Kd7 {[%clk 0:01:58]} 29. Be3 {[%clk 0:01:10]}  Bxe3 {[%clk 0:01:54]} 30. Kxe3 {[%clk 0:01:10]}  Bf7 {[%clk 0:01:50]} 31. Bf1 {[%clk 0:01:04]}  Kd6 {[%clk 0:01:49]} 32. Kd3 {[%clk 0:01:00]}  h5 {[%clk 0:01:31]} 33. gxh5 {[%clk 0:00:54]}  Bxh5 {[%clk 0:01:30]} 34. h4 {[%clk 0:00:53]}  Bg4 {[%clk 0:01:30]} 35. Kc3 {[%clk 0:00:46]}  c5 {[%clk 0:01:25]} 36. b4 {[%clk 0:00:41]}  axb4+ {[%clk 0:01:06]} 37. axb4 {[%clk 0:00:42]}  Ke7 {[%clk 0:01:05]} 38. bxc5 {[%clk 0:00:22]}  bxc5 {[%clk 0:01:05]} 39. Kb3 {[%clk 0:00:18]}  Bd1+ {[%clk 0:01:04]} 40. Kc3 {[%clk 0:00:18]}  Kf7 {[%clk 0:01:05]} 41. Kd2 {[%clk 0:00:18]}  Ba4 {[%clk 0:01:00]} 42. Be2 {[%clk 0:00:17]}  Kg6 {[%clk 0:00:59]} 43. Ke3 {[%clk 0:00:17]}  Kh6 {[%clk 0:00:55]} 44. f4 {[%clk 0:00:17]}  Kg6 {[%clk 0:00:55]} 45. f5+ {[%clk 0:00:12]}  Kh6 {[%clk 0:00:53]} 46. Kf2 {[%clk 0:00:09]}  Bc2 {[%clk 0:00:52]} 47. Ke3 {[%clk 0:00:09]}  Bb1 {[%clk 0:00:50]} 48. Kf3 {[%clk 0:00:09]}  Kh5 {[%clk 0:00:41]} 49. Kg3+ {[%clk 0:00:09]}  Kh6 {[%clk 0:00:42]} 50. Kf3 {[%clk 0:00:09]}  Ba2 {[%clk 0:00:41]} 51. Ke3 {[%clk 0:00:09]}  Bb3 {[%clk 0:00:41]} 52. Kf3 {[%clk 0:00:08]}  Ba4 {[%clk 0:00:41]} 53. Ke3 {[%clk 0:00:08]}  Be8 {[%clk 0:00:41]} 54. Kf2 {[%clk 0:00:05]}  Bf7 {[%clk 0:00:41]} 55. Kg3 {[%clk 0:00:05]}  Kh7 {[%clk 0:00:37]} 56. Kf2 {[%clk 0:00:05]}  Be8 {[%clk 0:00:36]} 57. Ke3 {[%clk 0:00:05]}  Kh6 {[%clk 0:00:34]} 58. Kf2 {[%clk 0:00:05]}  Bf7 {[%clk 0:00:28]} 59. Kg3 {[%clk 0:00:06]}  Kh7 {[%clk 0:00:20]} 60. Kf2 {[%clk 0:00:05]}  Kg8 {[%clk 0:00:20]} 61. Ke3 {[%clk 0:00:06]}  Kf8 {[%clk 0:00:21]} 62. Kd3 {[%clk 0:00:07]}  Ke7 {[%clk 0:00:21]} 63. Kc3 {[%clk 0:00:07]}  Kd6 {[%clk 0:00:21]} 64. Kb3 {[%clk 0:00:08]}  Be8 {[%clk 0:00:21]} 65. Ka3 {[%clk 0:00:07]}  Kc6 {[%clk 0:00:21]} 66. Bd1 {[%clk 0:00:06]}  Kb6 {[%clk 0:00:21]} 67. Bc2 {[%clk 0:00:03]}  Ka5 {[%clk 0:00:21]} 68. Bd3 {[%clk 0:00:03]}  Ba4 {[%clk 0:00:20]} 69. Bb1 {[%clk 0:00:02]}  Bd1 {[%clk 0:00:19]} 70. Bd3 {[%clk 0:00:02]}  Bh5 {[%clk 0:00:15]} 71. Kb3 {[%clk 0:00:02]}  Bf7 {[%clk 0:00:15]} 72. Ka3 {[%clk 0:00:03]}  Be8 {[%clk 0:00:15]} 73. Kb3 {[%clk 0:00:03]}  Bd7 {[%clk 0:00:15]} 74. Ka3 {[%clk 0:00:04]}  Ba4 {[%clk 0:00:15]} 75. Bb1 {[%clk 0:00:04]}  Bc6 {[%clk 0:00:14]} 76. Bd3 {[%clk 0:00:04]}  Kb6 {[%clk 0:00:14]} 77. Kb3 {[%clk 0:00:05]}  Kc7 {[%clk 0:00:14]} 78. Kc3 {[%clk 0:00:05]}  Kd6 {[%clk 0:00:15]} 79. Kd2 {[%clk 0:00:05]}  Ke7 {[%clk 0:00:16]} 80. Ke3 {[%clk 0:00:06]}  Ke8 {[%clk 0:00:16]} 81. Be2 {[%clk 0:00:06]}  Kd8 {[%clk 0:00:15]} 82. Kd2 {[%clk 0:00:06]}  Bxe4 {[%clk 0:00:15]} 83. Bg4 {[%clk 0:00:05]}  Bc6 {[%clk 0:00:14]} 84. Ke3 {[%clk 0:00:06]}  Kc7 {[%clk 0:00:15]} 85. Kd3 {[%clk 0:00:05]}  Kb6 {[%clk 0:00:15]} 86. Kc3 {[%clk 0:00:06]}  Ka5 {[%clk 0:00:16]} 87. Kb3 {[%clk 0:00:06]}  Ba4+ {[%clk 0:00:16]} 88. Ka3 {[%clk 0:00:06]}  e4 {[%clk 0:00:16]} 89. Be2 {[%clk 0:00:05]}  e3 {[%clk 0:00:16]} 90. Bf3 {[%clk 0:00:05]}  Bd7 {[%clk 0:00:16]} 91. Bg4 {[%clk 0:00:03]}  Bxf5 {[%clk 0:00:16]} 0-1


[Site "https://www.chess.com"]

[Event "Titled Tuesday Blitz June 15 2021"]
[White "Quintiliano Pinto, Renato R."]
[Black "Sokolovsky, Yahli"]
[WhiteFideId "2117568"]
[BlackFideId "2820242"]
[WhiteElo "2439"]
[BlackElo "1770"]
[Result "1-0"]
[Round "06"]
[TimeControl "180+1"]
[Date "2021.06.15"]
[WhiteClock "0:00:24"]
[BlackClock "0:00:01"]

1. e4 {[%clk 0:03:00]}  g6 {[%clk 0:03:00]} 2. d4 {[%clk 0:03:00]}  Bg7 {[%clk 0:03:00]} 3. Nc3 {[%clk 0:03:01]}  d6 {[%clk 0:03:00]} 4. g3 {[%clk 0:03:01]}  b6 {[%clk 0:02:56]} 5. Bg2 {[%clk 0:03:00]}  Bb7 {[%clk 0:02:57]} 6. Nge2 {[%clk 0:03:00]}  Nf6 {[%clk 0:02:57]} 7. O-O {[%clk 0:02:59]}  Nfd7 {[%clk 0:01:59]} 8. Be3 {[%clk 0:02:51]}  e5 {[%clk 0:01:55]} 9. Qd2 {[%clk 0:02:31]}  O-O {[%clk 0:01:52]} 10. Rad1 {[%clk 0:02:26]}  Nc6 {[%clk 0:01:41]} 11. f4 {[%clk 0:02:11]}  exd4 {[%clk 0:01:25]} 12. Nxd4 {[%clk 0:02:10]}  Nc5 {[%clk 0:00:47]} 13. e5 {[%clk 0:01:27]}  Nxd4 {[%clk 0:00:43]} 14. Bxd4 {[%clk 0:01:26]}  Bxg2 {[%clk 0:00:15]} 15. Qxg2 {[%clk 0:01:27]}  Re8 {[%clk 0:00:04]} 16. exd6 {[%clk 0:01:25]}  Bxd4+ {[%clk 0:00:04]} 17. Rxd4 {[%clk 0:01:26]}  cxd6 {[%clk 0:00:05]} 18. Rfd1 {[%clk 0:01:26]}  Qe7 {[%clk 0:00:05]} 19. Qf2 {[%clk 0:01:22]}  Rad8 {[%clk 0:00:04]} 20. Nd5 {[%clk 0:01:20]}  Qe6 {[%clk 0:00:03]} 21. Nc7 {[%clk 0:01:06]}  Qxa2 {[%clk 0:00:02]} 22. Nxe8 {[%clk 0:01:06]}  Rxe8 {[%clk 0:00:03]} 23. c3 {[%clk 0:00:50]}  Ne4 {[%clk 0:00:02]} 24. Qc2 {[%clk 0:00:49]}  f5 {[%clk 0:00:02]} 25. Qa4 {[%clk 0:00:44]}  Qxa4 {[%clk 0:00:02]} 26. Rxa4 {[%clk 0:00:45]}  a5 {[%clk 0:00:02]} 27. Rc4 {[%clk 0:00:42]}  Re7 {[%clk 0:00:01]} 28. Rc6 {[%clk 0:00:42]}  Rb7 {[%clk 0:00:02]} 29. Rd5 {[%clk 0:00:38]}  b5 {[%clk 0:00:02]} 30. Ra6 {[%clk 0:00:37]}  b4 {[%clk 0:00:03]} 31. c4 {[%clk 0:00:34]}  b3 {[%clk 0:00:01]} 32. Rdxa5 {[%clk 0:00:24]} 1-0


[Site "https://www.chess.com"]

[Event "Titled Tuesday Blitz June 15 2021"]
[White "Roman, Rodrigo"]
[Black "Palchuk, Andrii"]
[WhiteFideId "3701220"]
[BlackFideId "14176688"]
[WhiteElo "2043"]
[BlackElo "2267"]
[Result "0-1"]
[Round "06"]
[TimeControl "180+1"]
[Date "2021.06.15"]
[WhiteClock "0:00:02"]
[BlackClock "0:00:16"]

1. Nf3 {[%clk 0:02:53]}  Nf6 {[%clk 0:02:54]} 2. g3 {[%clk 0:02:53]}  d5 {[%clk 0:02:48]} 3. Bg2 {[%clk 0:02:54]}  c6 {[%clk 0:02:48]} 4. d4 {[%clk 0:02:54]}  Bg4 {[%clk 0:02:49]} 5. O-O {[%clk 0:02:54]}  Nbd7 {[%clk 0:02:48]} 6. Nbd2 {[%clk 0:02:53]}  e6 {[%clk 0:02:46]} 7. Re1 {[%clk 0:02:53]}  Be7 {[%clk 0:02:43]} 8. e4 {[%clk 0:02:53]}  dxe4 {[%clk 0:02:43]} 9. Nxe4 {[%clk 0:02:54]}  Nxe4 {[%clk 0:02:44]} 10. Rxe4 {[%clk 0:02:55]}  Nf6 {[%clk 0:02:42]} 11. Re1 {[%clk 0:02:54]}  O-O {[%clk 0:02:42]} 12. c3 {[%clk 0:02:54]}  c5 {[%clk 0:02:42]} 13. Qb3 {[%clk 0:02:44]}  Bxf3 {[%clk 0:02:42]} 14. Bxf3 {[%clk 0:02:43]}  cxd4 {[%clk 0:02:42]} 15. Qxb7 {[%clk 0:02:34]}  Rb8 {[%clk 0:02:28]} 16. Qxa7 {[%clk 0:02:14]}  dxc3 {[%clk 0:02:28]} 17. bxc3 {[%clk 0:02:11]}  Bd6 {[%clk 0:02:00]} 18. Bg5 {[%clk 0:01:48]}  h6 {[%clk 0:01:58]} 19. Be3 {[%clk 0:01:45]}  Qc8 {[%clk 0:01:52]} 20. Bd4 {[%clk 0:01:38]}  Rd8 {[%clk 0:01:42]} 21. a4 {[%clk 0:01:34]}  e5 {[%clk 0:01:40]} 22. Be3 {[%clk 0:01:14]}  Qxc3 {[%clk 0:01:38]} 23. Red1 {[%clk 0:01:10]}  e4 {[%clk 0:01:25]} 24. Rac1 {[%clk 0:01:05]}  Qa3 {[%clk 0:01:23]} 25. Be2 {[%clk 0:00:57]}  Bb4 {[%clk 0:01:04]} 26. Bc4 {[%clk 0:00:53]}  Rxd1+ {[%clk 0:00:51]} 27. Rxd1 {[%clk 0:00:54]}  Rf8 {[%clk 0:00:51]} 28. Bd4 {[%clk 0:00:38]}  Ng4 {[%clk 0:00:45]} 29. h3 {[%clk 0:00:30]}  Qf3 {[%clk 0:00:34]} 30. Rf1 {[%clk 0:00:29]}  Nf6 {[%clk 0:00:26]} 31. Qb6 {[%clk 0:00:25]}  Bc3 {[%clk 0:00:24]} 32. Be3 {[%clk 0:00:18]}  Be5 {[%clk 0:00:23]} 33. Kh2 {[%clk 0:00:16]}  Qh5 {[%clk 0:00:20]} 34. Kg2 {[%clk 0:00:12]}  Qf3+ {[%clk 0:00:20]} 35. Kh2 {[%clk 0:00:13]}  Qh5 {[%clk 0:00:21]} 36. Kg2 {[%clk 0:00:13]}  Qf5 {[%clk 0:00:22]} 37. a5 {[%clk 0:00:09]}  h5 {[%clk 0:00:22]} 38. a6 {[%clk 0:00:08]}  Qf3+ {[%clk 0:00:22]} 39. Kh2 {[%clk 0:00:08]}  h4 {[%clk 0:00:22]} 40. Rg1 {[%clk 0:00:09]}  Nh5 {[%clk 0:00:18]} 41. Qg6 {[%clk 0:00:01]}  hxg3+ {[%clk 0:00:17]} 42. fxg3 {[%clk 0:00:02]}  Nxg3 {[%clk 0:00:17]} 43. Rxg3 {[%clk 0:00:02]}  Qxe3 {[%clk 0:00:18]} 44. Kg2 {[%clk 0:00:02]}  Qxg3+ {[%clk 0:00:17]} 45. Qxg3 {[%clk 0:00:02]}  Bxg3 {[%clk 0:00:18]} 46. Kxg3 {[%clk 0:00:03]}  Ra8 {[%clk 0:00:19]} 47. Kf4 {[%clk 0:00:03]}  Kf8 {[%clk 0:00:17]} 48. Kxe4 {[%clk 0:00:03]}  Ke7 {[%clk 0:00:18]} 49. Kd5 {[%clk 0:00:04]}  Kd7 {[%clk 0:00:18]} 50. Bb5+ {[%clk 0:00:04]}  Kc7 {[%clk 0:00:18]} 51. Ke5 {[%clk 0:00:04]}  Rh8 {[%clk 0:00:18]} 52. Bf1 {[%clk 0:00:02]}  Kb6 {[%clk 0:00:16]} 53. Kd6 {[%clk 0:00:01]}  Rh6+ {[%clk 0:00:15]} 54. Ke7 {[%clk 0:00:02]}  Re6+ {[%clk 0:00:16]} 0-1


[Site "https://www.chess.com"]

[Event "Titled Tuesday Blitz June 15 2021"]
[White "Sanal, Vahap"]
[Black "Zverev, Lev"]
[WhiteFideId "6300545"]
[BlackFideId "24250775"]
[WhiteElo "2507"]
[BlackElo "2109"]
[Result "1-0"]
[Round "06"]
[TimeControl "180+1"]
[Date "2021.06.15"]
[WhiteClock "0:00:08"]
[BlackClock "0:00:01"]

1. Nf3 {[%clk 0:03:00]}  Nf6 {[%clk 0:02:57]} 2. g3 {[%clk 0:03:00]}  e6 {[%clk 0:02:58]} 3. Bg2 {[%clk 0:03:00]}  d5 {[%clk 0:02:59]} 4. b3 {[%clk 0:02:59]}  Be7 {[%clk 0:03:00]} 5. Bb2 {[%clk 0:02:59]}  O-O {[%clk 0:03:01]} 6. O-O {[%clk 0:02:59]}  c5 {[%clk 0:03:01]} 7. e3 {[%clk 0:02:58]}  Nc6 {[%clk 0:03:00]} 8. c4 {[%clk 0:02:58]}  d4 {[%clk 0:02:50]} 9. exd4 {[%clk 0:02:57]}  cxd4 {[%clk 0:02:50]} 10. Re1 {[%clk 0:02:57]}  Re8 {[%clk 0:02:36]} 11. d3 {[%clk 0:02:54]}  Bb4 {[%clk 0:02:32]} 12. Nbd2 {[%clk 0:02:53]}  e5 {[%clk 0:02:30]} 13. a3 {[%clk 0:02:54]}  Bd6 {[%clk 0:02:29]} 14. b4 {[%clk 0:02:54]}  Bf5 {[%clk 0:02:27]} 15. c5 {[%clk 0:02:53]}  Bc7 {[%clk 0:02:26]} 16. Nc4 {[%clk 0:02:53]}  e4 {[%clk 0:02:17]} 17. dxe4 {[%clk 0:02:50]}  Bxe4 {[%clk 0:02:18]} 18. Nxd4 {[%clk 0:02:47]}  Bxg2 {[%clk 0:02:11]} 19. Rxe8+ {[%clk 0:02:46]}  Nxe8 {[%clk 0:02:09]} 20. Kxg2 {[%clk 0:02:39]}  Qd5+ {[%clk 0:02:07]} 21. Qf3 {[%clk 0:02:39]}  Qxc4 {[%clk 0:02:05]} 22. Nxc6 {[%clk 0:02:40]}  bxc6 {[%clk 0:02:04]} 23. Qxc6 {[%clk 0:02:41]}  Rd8 {[%clk 0:02:04]} 24. Re1 {[%clk 0:02:41]}  Kf8 {[%clk 0:01:57]} 25. Kg1 {[%clk 0:01:30]}  Qc2 {[%clk 0:01:24]} 26. Ba1 {[%clk 0:01:26]}  Qd2 {[%clk 0:01:19]} 27. Kf1 {[%clk 0:01:20]}  Qd3+ {[%clk 0:01:18]} 28. Kg1 {[%clk 0:01:20]}  Qd7 {[%clk 0:01:08]} 29. Qe4 {[%clk 0:01:16]}  f5 {[%clk 0:00:48]} 30. Qh4 {[%clk 0:01:11]}  h6 {[%clk 0:00:35]} 31. Qh5 {[%clk 0:01:06]}  Qf7 {[%clk 0:00:34]} 32. Qf3 {[%clk 0:01:05]}  Qd5 {[%clk 0:00:26]} 33. Qe2 {[%clk 0:01:02]}  Qd7 {[%clk 0:00:20]} 34. b5 {[%clk 0:00:58]}  Nf6 {[%clk 0:00:18]} 35. Bxf6 {[%clk 0:00:56]}  gxf6 {[%clk 0:00:19]} 36. a4 {[%clk 0:00:47]}  Re8 {[%clk 0:00:14]} 37. Qf1 {[%clk 0:00:47]}  Rxe1 {[%clk 0:00:13]} 38. Qxe1 {[%clk 0:00:48]}  Qd4 {[%clk 0:00:13]} 39. Qc1 {[%clk 0:00:42]}  Kg7 {[%clk 0:00:08]} 40. Qc2 {[%clk 0:00:42]}  Qa1+ {[%clk 0:00:06]} 41. Kg2 {[%clk 0:00:42]}  Qe5 {[%clk 0:00:07]} 42. f3 {[%clk 0:00:31]}  Qd5 {[%clk 0:00:06]} 43. c6 {[%clk 0:00:20]}  h5 {[%clk 0:00:05]} 44. Qe2 {[%clk 0:00:18]}  Qc5 {[%clk 0:00:05]} 45. Qe6 {[%clk 0:00:18]}  Bb6 {[%clk 0:00:05]} 46. Qd7+ {[%clk 0:00:17]}  Kh6 {[%clk 0:00:04]} 47. Qd2+ {[%clk 0:00:18]}  Kg7 {[%clk 0:00:04]} 48. Kh3 {[%clk 0:00:18]}  Qg1 {[%clk 0:00:03]} 49. Qe2 {[%clk 0:00:17]}  Qc5 {[%clk 0:00:02]} 50. Qe6 {[%clk 0:00:17]}  f4 {[%clk 0:00:03]} 51. Qd7+ {[%clk 0:00:16]}  Kh6 {[%clk 0:00:03]} 52. Qd2 {[%clk 0:00:16]}  Qf5+ {[%clk 0:00:02]} 53. Kg2 {[%clk 0:00:17]}  Qc5 {[%clk 0:00:03]} 54. Qxf4+ {[%clk 0:00:17]}  Kg7 {[%clk 0:00:04]} 55. Qd2 {[%clk 0:00:17]}  Qg1+ {[%clk 0:00:02]} 56. Kh3 {[%clk 0:00:16]}  Qf1+ {[%clk 0:00:03]} 57. Kh4 {[%clk 0:00:13]}  Qxf3 {[%clk 0:00:03]} 58. Qd7+ {[%clk 0:00:12]}  Kh6 {[%clk 0:00:03]} 59. Qe6 {[%clk 0:00:10]}  Be3 {[%clk 0:00:02]} 60. Qc4 {[%clk 0:00:06]}  Bg5+ {[%clk 0:00:03]} 61. Kh3 {[%clk 0:00:06]}  Qf5+ {[%clk 0:00:01]} 62. Kg2 {[%clk 0:00:07]}  Qc8 {[%clk 0:00:01]} 63. Qd3 {[%clk 0:00:07]}  f5 {[%clk 0:00:02]} 64. Qd6+ {[%clk 0:00:07]}  Kg7 {[%clk 0:00:01]} 65. c7 {[%clk 0:00:07]}  Qb7+ {[%clk 0:00:02]} 66. Qc6 {[%clk 0:00:07]}  Qc8 {[%clk 0:00:02]} 67. a5 {[%clk 0:00:07]}  Bf6 {[%clk 0:00:02]} 68. b6 {[%clk 0:00:08]}  axb6 {[%clk 0:00:02]} 69. axb6 {[%clk 0:00:09]}  Qa6 {[%clk 0:00:03]} 70. Qd7+ {[%clk 0:00:07]}  Kg6 {[%clk 0:00:01]} 71. Qe8+ {[%clk 0:00:07]}  Kg7 {[%clk 0:00:01]} 72. c8=Q {[%clk 0:00:08]}  Qe2+ {[%clk 0:00:01]} 73. Qxe2 {[%clk 0:00:08]} 1-0


[Site "https://www.chess.com"]

[Event "Titled Tuesday Blitz June 15 2021"]
[White "Savitski, Andrei"]
[Black "Rodchenkov, Sergey D."]
[WhiteFideId "13506161"]
[BlackFideId "4168712"]
[WhiteElo "2121"]
[BlackElo "2306"]
[Result "1-0"]
[Round "06"]
[TimeControl "180+1"]
[Date "2021.06.15"]
[WhiteClock "0:00:55"]
[BlackClock "0:00:38"]

1. e4 {[%clk 0:02:59]}  c5 {[%clk 0:02:51]} 2. Nf3 {[%clk 0:02:57]}  d6 {[%clk 0:02:50]} 3. d4 {[%clk 0:02:57]}  cxd4 {[%clk 0:02:49]} 4. Nxd4 {[%clk 0:02:58]}  Nf6 {[%clk 0:02:43]} 5. Nc3 {[%clk 0:02:52]}  a6 {[%clk 0:02:42]} 6. Bg5 {[%clk 0:02:52]}  Nbd7 {[%clk 0:02:34]} 7. Qe2 {[%clk 0:02:50]}  h6 {[%clk 0:02:34]} 8. Bh4 {[%clk 0:02:50]}  e6 {[%clk 0:02:32]} 9. O-O-O {[%clk 0:02:49]}  Qc7 {[%clk 0:02:32]} 10. f4 {[%clk 0:02:47]}  Be7 {[%clk 0:02:32]} 11. Be1 {[%clk 0:02:47]}  b5 {[%clk 0:02:28]} 12. a3 {[%clk 0:02:47]}  Bb7 {[%clk 0:02:27]} 13. g4 {[%clk 0:02:47]}  d5 {[%clk 0:02:20]} 14. e5 {[%clk 0:02:45]}  Ne4 {[%clk 0:02:20]} 15. Nxe4 {[%clk 0:02:45]}  dxe4 {[%clk 0:02:20]} 16. Bg2 {[%clk 0:02:46]}  Nc5 {[%clk 0:02:19]} 17. Kb1 {[%clk 0:02:46]}  O-O {[%clk 0:02:14]} 18. h4 {[%clk 0:02:42]}  Rfd8 {[%clk 0:02:11]} 19. g5 {[%clk 0:02:14]}  Nd3 {[%clk 0:01:59]} 20. cxd3 {[%clk 0:02:14]}  Rxd4 {[%clk 0:01:58]} 21. dxe4 {[%clk 0:02:14]}  Rxd1+ {[%clk 0:01:57]} 22. Qxd1 {[%clk 0:02:15]}  Rd8 {[%clk 0:01:56]} 23. Qc2 {[%clk 0:02:15]}  Qb6 {[%clk 0:01:48]} 24. Bf2 {[%clk 0:02:04]}  Qa5 {[%clk 0:01:40]} 25. Be1 {[%clk 0:01:51]}  b4 {[%clk 0:01:34]} 26. gxh6 {[%clk 0:01:44]}  gxh6 {[%clk 0:01:33]} 27. Bf3 {[%clk 0:01:34]}  Qb5 {[%clk 0:01:22]} 28. Rg1+ {[%clk 0:01:29]}  Kf8 {[%clk 0:01:21]} 29. Qg2 {[%clk 0:01:21]}  Ke8 {[%clk 0:01:20]} 30. Bxb4 {[%clk 0:01:14]}  Bxb4 {[%clk 0:01:18]} 31. axb4 {[%clk 0:01:14]}  Qxb4 {[%clk 0:01:10]} 32. f5 {[%clk 0:01:06]}  Rd2 {[%clk 0:00:51]} 33. Qg8+ {[%clk 0:01:04]}  Qf8 {[%clk 0:00:50]} 34. fxe6 {[%clk 0:00:58]}  fxe6 {[%clk 0:00:38]} 35. Bh5+ {[%clk 0:00:55]} 1-0


[Site "https://www.chess.com"]